bitfinex-derivatives/quotes_SOLF0:USTF0_20250719
["timestamp","ask_amount","ask_price","bid_price","bid_amount"]
[1752963830618,5.6724,176.2,176.18,3.2]
[1752963831022,3.32,176.19,176.18,3.2]
[1752963833924,3.32,176.19,176.18,8.873]
[1752963834226,3.32,176.19,176.18,3.2]
[1752963837729,3.32,176.2,176.19,3.2]
[1752963839034,3.32,176.2,176.18,8.873]
[1752963839232,3.32,176.19,176.18,5.673]
[1752963839732,3.32,176.19,176.18,8.873]
[1752963840827,1.91019897,176.24,176.19,3.2]
[1752963841030,2.42874115,176.23,176.2,103.92]
[1752963841225,6.3524534,176.26,176.2,103.92]
[1752963841430,2.42897042,176.25,176.21,3.2]
[1752963841636,3.32,176.25,176.21,3.2]
[1752963843136,3.32,176.26,176.25,8.8707]
[1752963844336,3.32,176.28,176.26,3.2]
[1752963844526,3.32,176.28,176.24,104.32]
[1752963844730,3.32,176.28,176.25,3.2]
[1752963844928,3.32,176.26,176.25,3.2]
[1752963845538,3.32,176.29,176.26,3.2]
[1752963846136,3.32,176.29,176.28,3.2]
[1752963847235,3.32,176.29,176.28,8.8698]
[1752963847636,3.32,176.29,176.28,3.2]
[1752963849538,3.32,176.29,176.28,8.8698]
[1752963851733,3.32,176.31,176.29,3.2]
[1752963852138,3.32,176.31,176.3,3.2]
[1752963853030,3.32,176.31,176.29,3.2]
[1752963853639,3.32,176.31,176.29,107.56]
[1752963854837,3.32,176.31,176.29,113.2294]
[1752963855134,3.32,176.3,176.25,104.3]
[1752963855335,3.32,176.3,176.26,3.2]
[1752963855539,5.6697,176.29,176.26,5.6703]
[1752963855739,3.32,176.28,176.26,5.6703]
[1752963855936,3.32,176.28,176.25,104.3]
[1752963856343,3.32,176.26,176.25,104.3]
[1752963856741,5.6705,176.26,176.25,104.3]
[1752963856943,8.9905,176.26,176.25,104.3]
[1752963857139,1.91019897,176.26,176.23,187.12505777]
[1752963857346,3.32,176.25,176.23,187.12505777]
[1752963857745,8.9908,176.25,176.23,187.12505777]
[1752963858248,3.32,176.24,176.23,187.12505777]
[1752963860751,8.9911,176.24,176.23,187.12505777]
[1752963860951,10.90129897,176.24,176.23,187.12505777]
[1752963863050,5.23019897,176.24,176.23,187.12505777]
[1752963863756,3.32,176.24,176.23,195.85645777]
[1752963865260,3.32,176.24,176.23,300.19645777]
[1752963869660,7.58049897,176.27,176.25,5.6708]
[1752963869860,7.58049897,176.27,176.26,104.28]
[1752963870158,1.91019897,176.27,176.26,104.28]
[1752963870365,5.16019897,176.27,176.26,104.28]
[1752963871163,10.83029897,176.27,176.26,104.28]
[1752963879374,3.25,176.25,176.24,104.16]
[1752963879572,3.25,176.25,176.24,107.22]
[1752963880173,8.9208,176.25,176.24,107.22]
[1752963880972,8.9208,176.25,176.24,104.16]
[1752963884470,8.9208,176.25,176.24,107.22]
[1752963888776,5.6706,176.26,176.24,107.22]
[1752963888977,5.6706,176.26,176.25,3.06]
[1752963888978,8.9206,176.26,176.25,3.06]
[1752963889277,10.14434674,176.26,176.25,3.06]
[1752963890179,8.9208,176.25,176.24,107.22]
[1752963892675,8.9208,176.25,176.24,104.16]
[1752963893672,3.19,176.21,176.16,1.22384674]
[1752963893871,6.3524534,176.27,176.18,3.19]
[1752963893872,4.41384674,176.2,176.18,3.19]
[1752963894077,4.41384674,176.2,176.19,104.14]
[1752963894281,4.41384674,176.2,176.19,107.33]
[1752963894482,4.41384674,176.2,176.19,113.0027]
[1752963894979,3.19,176.2,176.19,113.0027]
[1752963895992,3.19,176.21,176.19,109.8127]
[1752963896191,3.19,176.21,176.2,3.19]
[1752963896995,8.8621,176.21,176.2,3.19]
[1752963897293,3.19,176.21,176.19,107.33]
[1752963897494,3.19,176.21,176.19,104.14]
[1752963897891,5.6724,176.2,176.19,104.14]
[1752963898091,8.8624,176.2,176.19,104.14]
[1752963898393,8.8624,176.2,176.19,107.33]
[1752963898594,3.19,176.2,176.19,107.37]
[1752963898789,1.91327766,176.22,176.2,3.19]
[1752963898985,5.10327766,176.22,176.21,104.18]
[1752963899186,10.77517766,176.22,176.21,107.37]
[1752963901197,10.77517766,176.22,176.21,104.18]
[1752963901890,13.20616989,176.22,176.21,104.18]
[1752963902396,3.19,176.2,176.19,107.37]
[1752963903395,3.19,176.2,176.19,113.0427]
[1752963903592,3.19,176.2,176.19,107.37]
[1752963903998,3.19,176.2,176.19,113.0427]
[1752963904300,3.19,176.2,176.19,104.18]
[1752963905601,8.8624,176.2,176.19,104.18]
[1752963905790,3.19,176.19,176.16,104.1]
[1752963905989,6.3524534,176.21,176.15,104.1]
[1752963905990,3.19,176.16,176.15,104.1]
[1752963906191,3.19,176.16,176.15,109.774]
[1752963906394,3.19,176.16,176.15,112.964]
[1752963906994,3.19,176.16,176.15,107.29]
[1752963907395,3.19,176.16,176.15,3.19]
[1752963907594,3.19,176.16,176.15,107.29]
[1752963908404,3.19,176.16,176.15,104.1]
[1752963908897,8.8637,176.16,176.15,104.1]
[1752963914001,3.19,176.16,176.15,107.29]
[1752963914704,3.19,176.16,176.15,112.964]
[1752963914901,1.91327766,176.17,176.16,3.19]
[1752963915403,5.10327766,176.17,176.16,3.19]
[1752963915904,10.77667766,176.17,176.16,3.19]
[1752963917705,3.19,176.19,176.16,3.19]
[1752963917903,3.19,176.18,176.17,103.98]
[1752963918205,3.19,176.18,176.17,104.0]
[1752963918705,3.19,176.18,176.17,107.19]
[1752963918901,6.3524534,176.24,176.17,107.19]
[1752963919105,20.8691801,176.27,176.18,3.19]
[1752963919106,1.91327766,176.23,176.18,3.19]
[1752963919306,3.19,176.22,176.18,3.19]
[1752963919506,3.19,176.2,176.19,3.19]
[1752963920207,3.19,176.2,176.19,8.8627]
[1752963921707,5.6723,176.21,176.19,5.6727]
[1752963921907,8.7323,176.21,176.2,107.3]
[1752963925711,3.06,176.21,176.2,107.3]
[1752963929014,3.06,176.22,176.2,103.96]
[1752963929210,6.3524534,176.29,176.21,3.34]
[1752963929413,3.06,176.25,176.23,3.34]
[1752963929618,3.06,176.25,176.24,107.26]
[1752963931917,3.06,176.25,176.24,112.9311]
[1752963933107,7.58287766,176.29,176.25,5.6708]
[1752963933312,7.58287766,176.29,176.26,107.24]
[1752963933814,3.06,176.28,176.26,103.9]
[1752963935122,8.7298,176.28,176.26,103.9]
[1752963935324,3.06,176.26,176.24,103.9]
[1752963936621,8.7306,176.26,176.24,103.9]
[1752963936820,3.06,176.26,176.24,103.9]
[1752963937223,3.06,176.24,176.2,3.34]
[1752963937418,3.06,176.24,176.21,103.9]
[1752963937824,3.06,176.23,176.21,107.24]
[1752963940225,3.06,176.23,176.21,112.9121]
[1752963940425,7.58417766,176.25,176.22,3.34]
[1752963940720,3.06,176.25,176.22,3.34]
[1752963940920,3.06,176.27,176.24,9.0111]
[1752963941124,3.06,176.26,176.25,3.34]
[1752963941329,1.91327766,176.28,176.25,3.34]
[1752963941517,3.06,176.27,176.25,9.0105]
[1752963941724,3.06,176.27,176.26,3.34]
[1752963943727,3.06,176.27,176.24,112.911]
[1752963949225,8.7302,176.27,176.24,112.911]
[1752963949529,3.06,176.26,176.24,112.911]
[1752963951932,7.58327766,176.28,176.25,8.7308]
[1752963952629,3.02,176.27,176.25,8.7308]
[1752963958135,3.02,176.27,176.26,5.6705]
[1752963958736,3.02,176.27,176.25,8.7306]
[1752963961338,3.02,176.26,176.25,3.06]
[1752963961537,3.02,176.26,176.24,112.6311]
[1752963961838,3.02,176.26,176.24,109.5711]
[1752963962935,1.22381246,176.25,176.24,109.5711]
[1752963963135,4.24381246,176.25,176.24,109.5711]
[1752963963834,4.24381246,176.25,176.24,112.6311]
[1752963964938,3.02,176.25,176.24,112.6311]
[1752963965432,3.02,176.25,176.24,109.5711]
[1752963966337,3.02,176.24,176.23,103.86]
[1752963966535,5.44006223,176.24,176.2,3.06]
[1752963966735,3.02,176.23,176.21,106.92]
[1752963967034,3.02,176.23,176.21,112.5919]
[1752963967238,3.02,176.23,176.22,3.06]
[1752963967637,3.02,176.23,176.21,103.86]
[1752963967833,1.9122073,176.23,176.21,103.86]
[1752963968035,3.02,176.22,176.18,3.06]
[1752963968237,3.02,176.22,176.19,103.86]
[1752963968438,3.02,176.22,176.19,112.5925]
[1752963969040,5.6719,176.22,176.19,112.5925]
[1752963969338,3.02,176.21,176.19,112.5925]
[1752963969739,3.02,176.21,176.2,8.7324]
[1752963970443,3.02,176.21,176.2,3.06]
[1752963971844,4.9322073,176.21,176.19,103.86]
[1752963972144,3.02,176.2,176.19,103.86]
[1752963972340,5.6733,176.18,176.15,8.7338]
[1752963972643,3.02,176.17,176.15,112.6138]
[1752963975639,3.02,176.17,176.16,5.6737]
[1752963976348,3.02,176.17,176.15,112.6139]
[1752963980951,3.02,176.17,176.15,109.5539]
[1752963981247,8.6936,176.17,176.14,3.02]
[1752963981453,3.25,176.15,176.12,106.9]
[1752963982150,3.25,176.15,176.13,3.02]
[1752963982347,3.25,176.15,176.13,8.6944]
[1752963984053,3.25,176.15,176.13,3.02]
[1752963984653,3.25,176.15,176.14,5.6743]
[1752963984852,3.25,176.15,176.14,8.6943]
[1752963986352,3.25,176.15,176.14,3.02]
[1752963986956,3.25,176.15,176.13,8.6945]
[1752963988958,3.25,176.15,176.14,3.02]
[1752963995668,3.25,176.15,176.13,5.6745]
[1752963995864,3.25,176.15,176.13,8.6945]
[1752963996968,1.22530287,176.14,176.13,8.6945]
[1752963997266,4.47530287,176.14,176.13,8.6945]
[1752964006270,3.25,176.14,176.13,8.6945]
[1752964009976,3.25,176.17,176.15,3.02]
[1752964010278,3.25,176.17,176.16,106.92]
[1752964010479,3.25,176.17,176.16,112.5937]
[1752964012380,4.47530287,176.17,176.16,112.5937]
[1752964013383,4.31530287,176.17,176.16,112.5937]
[1752964015283,3.09,176.16,176.09,3.12]
[1752964015487,1.22530287,176.11,176.1,103.88]
[1752964015683,4.31530287,176.11,176.1,109.5556]
[1752964015884,4.31530287,176.11,176.1,112.6756]
[1752964016086,3.09,176.11,176.1,112.6756]
[1752964017788,3.09,176.11,176.1,109.5556]
[1752964018883,3.09,176.11,176.1,112.6756]
[1752964020989,3.09,176.11,176.1,8.7956]
[1752964021189,3.09,176.11,176.1,112.6956]
[1752964022687,3.09,176.11,176.1,8.7956]
[1752964022887,3.09,176.11,176.1,112.6956]
[1752964026788,6.3524534,176.17,176.12,3.12]
[1752964026986,9.5286801,176.19,176.14,3.12]
[1752964026987,3.09,176.18,176.14,3.12]
[1752964027191,3.09,176.16,176.15,107.02]
[1752964027493,3.09,176.16,176.15,112.6938]
[1752964029192,1.91510826,176.2,176.17,8.7932]
[1752964029490,1.91510826,176.2,176.17,103.9]
[1752964029692,3.09,176.19,176.17,103.9]
[1752964030092,5.00510826,176.19,176.17,107.02]
[1752964030292,3.09,176.18,176.17,107.02]
[1752964030492,3.09,176.18,176.17,112.6933]
[1752964032798,3.09,176.18,176.08,3.12]
[1752964033096,3.09,176.18,176.11,3.12]
[1752964033299,8.7632,176.18,176.15,5.674]
[1752964033601,3.09,176.17,176.16,103.88]
[1752964034596,8.7634,176.17,176.16,103.88]
[1752964035592,3.09,176.17,176.16,103.88]
[1752964035991,3.09,176.16,176.14,109.5542]
[1752964036893,4.31519565,176.16,176.14,109.5542]
[1752964037293,1.22519565,176.16,176.14,109.5542]
[1752964037607,3.09,176.15,176.14,109.5542]
[1752964037899,3.09,176.15,176.14,112.6742]
[1752964039498,3.09,176.15,176.14,109.5542]
[1752964039898,3.09,176.15,176.14,103.88]
[1752964040091,3.09,176.15,176.12,109.5547]
[1752964040295,4.47519565,176.13,176.12,109.5547]
[1752964040898,3.25,176.13,176.12,103.88]
[1752964041300,8.9247,176.13,176.12,103.88]
[1752964041902,3.25,176.13,176.12,103.88]
[1752964043904,3.25,176.13,176.12,109.555]
[1752964044498,3.25,176.13,176.12,112.795]
[1752964047306,3.25,176.16,176.15,3.24]
[1752964047908,3.25,176.16,176.14,109.5741]
[1752964048207,3.25,176.16,176.14,112.8141]
[1752964048813,3.25,176.16,176.15,5.674]
[1752964050210,3.25,176.16,176.14,112.8142]
[1752964050813,3.25,176.15,176.1,3.24]
[1752964051010,3.25,176.15,176.11,103.88]
[1752964051011,3.25,176.14,176.11,103.88]
[1752964051207,3.25,176.14,176.12,5.675]
[1752964052317,8.9244,176.14,176.11,109.5552]
[1752964052815,3.25,176.13,176.11,109.5552]
[1752964054016,3.25,176.13,176.11,103.88]
[1752964054617,3.25,176.13,176.11,107.12]
[1752964054818,8.9247,176.13,176.11,107.12]
[1752964055117,3.25,176.12,176.11,107.12]
[1752964055313,3.25,176.12,176.11,103.88]
[1752964055620,8.925,176.12,176.11,103.88]
[1752964056321,8.925,176.12,176.09,103.9]
[1752964056522,5.675,176.12,176.09,103.9]
[1752964056717,3.25,176.11,176.09,107.14]
[1752964056918,3.25,176.11,176.09,112.8159]
[1752964057821,8.9253,176.11,176.09,112.8159]
[1752964058022,3.25,176.1,176.09,112.8159]
[1752964060519,3.25,176.12,176.09,107.14]
[1752964060720,3.25,176.12,176.1,3.24]
[1752964060920,1.91483048,176.13,176.11,103.9]
[1752964061122,1.91483048,176.13,176.11,112.8151]
[1752964061522,3.25,176.12,176.11,112.8151]
[1752964062019,3.25,176.12,176.11,109.5751]
[1752964062626,3.25,176.12,176.11,112.8151]
[1752964063021,4.47574045,176.12,176.11,112.8151]
[1752964064522,12.0259534,176.17,176.14,5.6741]
[1752964064729,4.47574045,176.15,176.14,8.9141]
[1752964066930,3.25,176.15,176.14,8.9141]
[1752964070330,3.25,176.15,176.14,3.24]
[1752964070629,3.25,176.15,176.13,112.8145]
[1752964072634,3.25,176.15,176.14,5.6743]
[1752964072932,3.15,176.15,176.13,103.9]
[1752964073432,3.15,176.15,176.14,3.24]
[1752964073933,3.15,176.15,176.14,8.9143]
[1752964074927,3.15,176.17,176.16,8.9137]
[1752964075133,3.15,176.17,176.16,112.7937]
[1752964078836,3.15,176.17,176.16,107.12]
[1752964079036,3.15,176.17,176.16,103.88]
[1752964079538,5.6739,176.16,176.14,103.88]
[1752964079739,3.15,176.15,176.14,103.88]
[1752964081238,3.15,176.15,176.04,3.24]
[1752964081436,3.15,176.1,176.05,103.86]
[1752964081733,3.15,176.06,176.05,103.86]
[1752964082440,3.15,176.06,176.04,3.24]
[1752964082736,3.15,176.06,176.05,103.86]
[1752964084336,3.15,176.05,176.03,103.88]
[1752964084544,3.15,176.03,176.01,103.88]
[1752964085141,3.15,176.03,176.01,112.7985]
[1752964085342,3.15,176.02,176.01,107.12]
[1752964085636,3.15,176.02,176.01,112.7985]
[1752964092042,3.15,176.02,176.01,109.5585]
[1752964093445,3.15,176.02,176.01,112.7985]
[1752964095142,3.15,176.05,176.03,8.9178]
[1752964095347,3.15,176.05,176.03,107.14]
[1752964095543,3.15,176.05,176.04,3.24]
[1752964095744,3.15,176.05,176.04,8.9175]
[1752964096550,3.15,176.05,176.04,3.24]
[1752964097244,3.15,176.08,176.05,3.24]
[1752964097455,3.15,176.08,176.07,3.24]
[1752964097749,3.15,176.08,176.07,107.16]
[1752964103156,3.15,176.08,176.07,103.92]
[1752964114968,3.15,176.08,176.07,106.99]
[1752964116272,3.15,176.08,176.07,103.92]
[1752964117770,8.8262,176.08,176.07,103.92]
[1752964117968,3.25,176.07,176.05,103.88]
[1752964119376,3.25,176.07,176.05,106.95]
[1752964119676,3.25,176.08,176.06,3.07]
[1752964121578,3.25,176.08,176.06,8.7468]
[1752964121776,3.25,176.09,176.07,3.07]
[1752964122070,3.25,176.08,176.05,103.88]
[1752964122369,3.25,176.08,176.07,5.6766]
[1752964122573,3.25,176.08,176.07,8.7466]
[1752964122972,3.25,176.08,176.0,1.91427996]
[1752964123165,3.25,176.08,176.05,3.07]
[1752964123367,3.25,176.08,176.06,3.07]
[1752964123567,7.59047996,176.09,176.05,103.86]
[1752964123765,3.25,176.07,176.05,103.86]
[1752964124173,3.25,176.07,176.06,3.07]
[1752964132483,3.25,176.07,176.06,8.7469]
[1752964135083,3.25,176.07,176.06,3.07]
[1752964139690,3.25,176.07,176.06,8.7469]
[1752964139890,1.22614801,176.08,176.07,3.19]
[1752964140091,1.22614801,176.08,176.07,103.84]
[1752964140292,1.22614801,176.08,176.06,3.19]
[1752964140783,6.90244801,176.08,176.06,3.19]
[1752964141489,2.43574472,176.07,176.06,3.19]
[1752964141885,5.63574472,176.07,176.06,3.19]
[1752964143485,5.63574472,176.07,176.05,107.03]
[1752964143691,3.2,176.06,176.05,107.03]
[1752964145888,3.2,176.05,176.03,3.19]
[1752964146190,3.2,176.03,176.02,107.03]
[1752964147193,8.8778,176.03,176.02,103.84]
[1752964147389,8.8778,176.03,176.0,3.19]
[1752964147593,4.42614801,176.02,176.01,3.19]
[1752964149195,3.2,176.02,176.01,3.19]
[1752964149493,4.42614801,176.02,176.01,3.19]
[1752964152294,10.10414801,176.02,176.0,107.03]
[1752964152592,3.2,176.01,176.0,107.03]
[1752964155492,3.2,176.01,176.0,112.7087]
[1752964155693,3.2,176.01,176.0,107.03]
[1752964157605,5.6778,176.03,176.01,3.19]
[1752964157606,1.22614801,176.03,176.01,3.19]
[1752964157792,1.22614801,176.03,176.02,103.84]
[1752964157996,1.22614801,176.03,176.02,107.03]
[1752964158297,3.2,176.03,176.02,107.03]
[1752964160294,3.31,176.05,176.03,3.32]
[1752964160600,4.53614801,176.07,176.05,3.32]
[1752964161499,10.21274801,176.07,176.05,3.32]
[1752964163000,8.9866,176.07,176.05,3.32]
[1752964164300,5.6766,176.07,176.05,3.32]
[1752964164502,3.31,176.06,176.05,3.32]
[1752964166603,8.9866,176.07,176.05,3.32]
[1752964167603,3.31,176.06,176.05,3.32]
[1752964167798,8.9867,176.06,176.05,3.32]
[1752964175103,3.31,176.06,176.05,3.32]
[1752964180809,8.9868,176.06,176.05,3.32]
[1752964182910,5.6771,176.05,176.04,107.16]
[1752964183105,8.9871,176.05,176.04,107.16]
[1752964183306,8.9871,176.05,176.04,103.84]
[1752964183512,5.6781,176.02,176.01,107.1]
[1752964183810,8.9881,176.02,176.01,107.1]
[1752964184407,8.9881,176.02,176.01,103.78]
[1752964184710,8.9887,176.0,175.99,107.1]
[1752964185610,8.9887,176.0,175.99,103.78]
[1752964188213,10.21484801,176.0,175.99,103.78]
[1752964188413,3.31,175.99,175.95,381.72]
[1752964188711,3.31,175.97,175.96,103.78]
[1752964189113,3.31,175.97,175.96,107.1]
[1752964189809,3.31,175.97,175.96,103.78]
[1752964190410,8.9897,175.97,175.96,103.78]
[1752964192512,8.9897,175.97,175.96,107.02]
[1752964193812,3.31,175.97,175.96,107.02]
[1752964194716,8.9897,175.97,175.96,107.02]
[1752964195217,8.9897,175.97,175.96,3.24]
[1752964198217,3.31,175.97,175.96,3.24]
[1752964198615,6.90564801,175.98,175.96,3.24]
[1752964198918,1.22614801,175.98,175.96,3.24]
[1752964199522,1.22614801,175.98,175.96,8.9198]
[1752964199814,4.33614801,175.98,175.97,3.24]
[1752964201919,10.01544801,175.98,175.97,3.24]
[1752964206529,8.7893,175.98,175.97,3.24]
[1752964206730,10.01544801,175.98,175.97,3.24]
[1752964211333,1.22614801,175.98,175.97,3.24]
[1752964212133,4.33614801,175.98,175.97,3.24]
[1752964212636,10.01544801,175.98,175.97,3.24]
[1752964215939,8.7893,175.98,175.97,3.24]
[1752964216139,10.01544801,175.98,175.97,3.24]
[1752964216740,8.7893,175.98,175.97,3.24]
[1752964217042,3.11,175.97,175.94,107.02]
[1752964217237,3.11,175.94,175.9,103.78]
[1752964217438,6.90744801,175.92,175.91,3.24]
[1752964217638,1.22614801,175.92,175.91,3.24]
[1752964217940,4.33614801,175.92,175.91,3.24]
[1752964220141,10.01744801,175.92,175.91,3.24]
[1752964221444,3.23,175.91,175.79,3.1]
[1752964221642,3.23,175.88,175.86,3.1]
[1752964221842,4.45614801,175.89,175.88,3.1]
[1752964222043,1.22614801,175.89,175.88,3.1]
[1752964222341,1.22614801,175.89,175.88,8.7826]
[1752964222743,4.45614801,175.89,175.88,3.1]
[1752964224146,3.23,175.89,175.88,3.1]
[1752964224448,3.23,175.89,175.88,8.7826]
[1752964224648,4.45614801,175.89,175.88,8.7826]
[1752964225946,1.22614801,175.89,175.88,8.7826]
[1752964226846,4.45614801,175.89,175.88,8.7826]
[1752964228053,1.22614801,175.91,175.9,3.1]
[1752964228246,1.22614801,175.91,175.9,106.9]
[1752964228440,4.45614801,175.91,175.9,106.9]
[1752964228648,4.45614801,175.91,175.86,1.22614801]
[1752964228846,3.23,175.9,175.89,3.1]
[1752964229341,4.45614801,175.9,175.89,3.1]
[1752964229648,4.45614801,175.9,175.87,103.78]
[1752964229649,3.23,175.89,175.87,106.88]
[1752964229850,4.45614801,175.88,175.87,106.88]
[1752964230246,4.45614801,175.88,175.87,103.78]
[1752964230443,3.23,175.87,175.85,3.1]
[1752964230745,1.22614801,175.86,175.85,3.1]
[1752964231051,4.45614801,175.86,175.85,3.1]
[1752964231751,4.45614801,175.86,175.84,109.4637]
[1752964231752,3.23,175.85,175.84,103.78]
[1752964231952,3.23,175.85,175.83,3.1]
[1752964232150,1.22614801,175.84,175.83,3.1]
[1752964232450,4.45614801,175.84,175.83,3.1]
[1752964232652,4.45614801,175.84,175.83,8.7842]
[1752964232952,3.23,175.84,175.83,8.7842]
[1752964235453,5.15104928,175.86,175.84,3.1]
[1752964235751,3.23,175.87,175.84,3.1]
[1752964235956,3.23,175.87,175.85,5.6835]
[1752964236155,3.23,175.87,175.86,3.1]
[1752964236755,3.23,175.87,175.86,5.6832]
[1752964236956,3.23,175.87,175.86,8.7832]
[1752964237256,3.23,175.89,175.87,5.6829]
[1752964237459,3.23,175.89,175.88,3.1]
[1752964237851,7.60254928,175.92,175.89,3.1]
[1752964238157,1.92104928,175.94,175.89,3.1]
[1752964238357,3.23,175.93,175.89,3.1]
[1752964238560,134.26011689,175.96,175.87,3.1]
[1752964238561,3.23,175.91,175.87,3.1]
[1752964238956,3.23,175.9,175.87,3.1]
[1752964239657,5.15104928,175.92,175.88,3.1]
[1752964239862,3.23,175.92,175.88,3.1]
[1752964240264,3.23,175.92,175.89,5.682]
[1752964240561,3.23,175.92,175.9,3.1]
[1752964240762,3.23,175.91,175.9,3.1]
[1752964242964,3.23,175.91,175.9,8.7819]
[1752964245367,3.23,175.91,175.9,3.1]
[1752964250071,3.23,175.91,175.89,3.1]
[1752964250265,3.13,175.9,175.89,3.1]
[1752964251973,3.13,175.9,175.89,8.7822]
[1752964256991,4.35859931,175.9,175.89,8.7822]
[1752964261989,1.22859931,175.9,175.89,8.7822]
[1752964262590,3.13,175.93,175.91,3.3]
[1752964262790,3.13,175.92,175.87,3.3]
[1752964263088,3.13,175.9,175.87,3.3]
[1752964263283,3.13,175.9,175.89,3.3]
[1752964265782,3.13,175.9,175.81,3.3]
[1752964265987,3.13,175.86,175.83,3.3]
[1752964266491,1.22859931,175.87,175.85,5.6833]
[1752964266688,4.35859931,175.87,175.83,3.3]
[1752964267684,4.35859931,175.87,175.85,5.6833]
[1752964267888,4.35859931,175.87,175.86,3.3]
[1752964268689,4.35859931,175.87,175.86,8.9832]
[1752964270991,5.6824,175.89,175.86,8.9832]
[1752964270992,6.35908872,175.93,175.86,8.9832]
[1752964271296,103.76,175.95,175.86,8.9832]
[1752964271297,3.13,175.88,175.86,3.3]
[1752964272295,3.13,175.88,175.87,8.9827]
[1752964273295,3.13,175.88,175.82,104.98859931]
[1752964273596,3.13,175.85,175.82,104.98859931]
[1752964274098,3.13,175.85,175.83,3.3]
[1752964274496,3.13,175.85,175.84,8.9838]
[1752964276902,4.35859931,175.86,175.85,8.9835]
[1752964277606,4.35859931,175.86,175.85,3.3]
[1752964281104,6.91179931,175.86,175.83,3.1]
[1752964281309,116.11080479,175.95,175.84,8.7838]
[1752964281310,4.32859931,175.85,175.84,8.7838]
[1752964281707,4.32859931,175.85,175.84,3.1]
[1752964283204,3.1,175.84,175.83,8.7841]
[1752964288517,3.1,175.84,175.83,3.1]
[1752964289116,4.32859931,175.84,175.83,3.1]
[1752964289720,4.32859931,175.84,175.83,8.7842]
[1752964290215,4.32859931,175.84,175.83,3.1]
[1752964290417,4.32859931,175.84,175.82,103.76]
[1752964290617,3.1,175.83,175.82,103.76]
[1752964291318,3.1,175.83,175.82,106.86]
[1752964292212,8.7842,175.83,175.8,3.1]
[1752964292412,4.32859931,175.82,175.8,3.1]
[1752964292628,3.1,175.81,175.8,3.1]
[1752964292821,3.1,175.81,175.8,8.7851]
[1752964294521,3.1,175.81,175.8,3.1]
[1752964295319,3.1,175.81,175.8,8.7851]
[1752964295720,3.1,175.81,175.8,3.1]
[1752964296920,4.32859931,175.83,175.8,3.1]
[1752964297322,1.22859931,175.83,175.8,3.1]
[1752964297519,3.1,175.82,175.8,5.685]
[1752964297722,4.32859931,175.83,175.81,3.1]
[1752964297919,3.1,175.84,175.82,103.74]